bitfinex-derivatives/quotes_BTCF0:USTF0_20250218
["timestamp","ask_amount","ask_price","bid_price","bid_amount"]
[1739868744612,0.11952689,95296.0,95291.0,0.3920116]
[1739868745309,0.31341246,95297.0,95291.0,0.3920116]
[1739868745703,0.11162118,95295.0,95291.0,0.36924703]
[1739868746623,0.11183815,95296.0,95291.0,0.36924703]
[1739868747622,0.002,95295.0,95291.0,0.36924703]
[1739868747824,0.11184083,95294.0,95291.0,0.36924703]
[1739868748019,0.002,95295.0,95291.0,0.34788979]
[1739868748325,0.11158123,95294.0,95291.0,0.3063095]
[1739868749723,0.11158123,95294.0,95291.0,0.2534372]
[1739868750118,0.11458123,95294.0,95291.0,0.2534372]
[1739868750617,0.11758123,95294.0,95291.0,0.18117982]
[1739868751525,0.11758123,95294.0,95288.0,0.4083]
[1739868752823,0.11658123,95294.0,95288.0,0.4083]
[1739868755032,0.2098939,95291.0,95288.0,0.4083]
[1739868755220,0.11658123,95294.0,95285.0,0.3608]
[1739868755425,0.6066913,95293.0,95285.0,0.3608]
[1739868755826,0.3968,95293.0,95285.0,0.3608]
[1739868756029,0.11461046,95291.0,95285.0,0.3608]
[1739868756228,0.11661046,95291.0,95285.0,0.3608]
[1739868756430,0.002,95291.0,95285.0,0.3608]
[1739868757033,0.02216203,95291.0,95285.0,0.3608]
[1739868757229,0.11542787,95292.0,95285.0,0.3608]
[1739868757627,0.11783997,95290.0,95285.0,0.3608]
[1739868757946,0.11783997,95292.0,95285.0,0.3608]
[1739868758131,0.11783997,95289.0,95285.0,0.3608]
[1739868758526,0.002,95291.0,95285.0,0.3608]
[1739868759035,0.11782816,95288.0,95284.0,0.00015738]
[1739868759432,0.1148695,95290.0,95284.0,0.00015738]
[1739868759631,0.004,95291.0,95284.0,0.00015738]
[1739868759632,0.002,95291.0,95284.0,0.00015738]
[1739868759832,0.1148695,95290.0,95284.0,0.00015738]
[1739868760338,0.004,95288.0,95284.0,0.00015738]
[1739868760725,0.002,95288.0,95284.0,0.00015738]
[1739868761926,0.002,95288.0,95287.0,0.3608]
[1739868762132,0.002,95288.0,95287.0,0.25244479]
[1739868762634,0.004,95290.0,95287.0,0.25244479]
[1739868762836,0.002,95290.0,95287.0,0.25244479]
[1739868763040,0.002,95288.0,95287.0,0.25244479]
[1739868763339,0.004,95288.0,95287.0,0.25244479]
[1739868763531,0.002,95288.0,95287.0,0.25244479]
[1739868763724,0.005,95288.0,95287.0,0.25244479]
[1739868766043,0.005,95288.0,95287.0,0.63684749]
[1739868766232,0.005,95288.0,95287.0,0.60439637]
[1739868766533,0.003,95288.0,95287.0,0.60439637]
[1739868766741,0.002,95288.0,95287.0,0.39449367]
[1739868767438,0.001,95288.0,95287.0,0.39449367]
[1739868768527,0.001,95288.0,95287.0,0.46234749]
[1739868768933,0.0221949,95293.0,95288.0,0.2098992]
[1739868769133,0.10406113,95300.0,95288.0,0.2098992]
[1739868769335,0.10406113,95300.0,95297.0,0.3608]
[1739868769534,0.4115,95306.0,95298.0,0.6437]
[1739868770034,0.11310779,95302.0,95298.0,0.51788702]
[1739868770431,0.003,95300.0,95298.0,0.51788702]
[1739868770736,0.005,95300.0,95298.0,0.51788702]
[1739868771040,0.002,95300.0,95298.0,0.51888702]
[1739868771239,0.002,95300.0,95298.0,0.6609359]
[1739868772035,0.13740251,95302.0,95298.0,0.6619359]
[1739868772237,0.13740251,95302.0,95298.0,0.51988702]
[1739868772736,0.002,95300.0,95298.0,0.51988702]
[1739868772935,0.002,95300.0,95299.0,0.4187]
[1739868773139,0.005,95300.0,95299.0,0.4187]
[1739868773440,0.003,95300.0,95299.0,0.4187]
[1739868773637,0.13740251,95302.0,95299.0,0.4187]
[1739868773833,0.14040251,95302.0,95299.0,0.4187]
[1739868774231,0.13740251,95302.0,95299.0,0.4187]
[1739868774541,0.003,95300.0,95299.0,0.4187]
[1739868774742,0.003,95300.0,95299.0,0.56074888]
[1739868775536,0.003,95300.0,95299.0,0.504674]
[1739868775742,0.005,95300.0,95299.0,0.36262512]
[1739868775932,0.002,95300.0,95299.0,0.27724256]
[1739868776535,0.005,95300.0,95299.0,0.27724256]
[1739868777238,0.005,95300.0,95299.0,0.48711876]
[1739868777445,0.005,95300.0,95299.0,0.41929144]
[1739868777643,0.005,95300.0,95299.0,0.14204888]
[1739868779244,0.005,95300.0,95298.0,0.51844702]
[1739868779436,0.005,95300.0,95299.0,0.2098762]
[1739868779838,0.005,95300.0,95298.0,0.51852702]
[1739868780038,0.005,95300.0,95299.0,0.2098762]
[1739868780935,0.002,95300.0,95299.0,0.2098762]
[1739868781138,0.005,95300.0,95299.0,0.2098762]
[1739868781342,0.005,95300.0,95299.0,0.0498762]
[1739868781547,0.005,95300.0,95298.0,0.51852702]
[1739868781744,0.005,95300.0,95298.0,0.6599359]
[1739868781945,0.005,95300.0,95299.0,0.2098762]
[1739868782350,0.005,95300.0,95299.0,0.35192508]
[1739868782748,0.005,95300.0,95299.0,0.26654785]
[1739868783447,0.002,95300.0,95299.0,0.26654785]
[1739868783661,0.006,95300.0,95299.0,0.62734785]
[1739868783951,0.006,95300.0,95299.0,0.48529897]
[1739868784452,0.00015738,95303.0,95299.0,0.3608]
[1739868784638,0.00015738,95303.0,95302.0,0.2098696]
[1739868785647,0.00215738,95303.0,95302.0,0.2098696]
[1739868785845,0.06820217,95320.0,95311.0,0.2098487]
[1739868786043,0.52950434,95321.0,95313.0,0.3608]
[1739868786248,0.53050434,95321.0,95313.0,0.3608]
[1739868786450,0.55219652,95321.0,95313.0,0.6266]
[1739868786646,0.48399435,95321.0,95313.0,0.8364454]
[1739868786846,0.41579218,95321.0,95313.0,0.97849428]
[1739868787459,0.41579218,95321.0,95313.0,0.8364454]
[1739868788756,0.41579218,95321.0,95313.0,0.75208126]
[1739868789150,0.02269218,95321.0,95316.0,0.2098376]
[1739868789457,0.06835955,95323.0,95316.0,0.2098376]
[1739868790045,0.06835955,95323.0,95317.0,0.2098359]
[1739868790950,0.42546532,95322.0,95317.0,0.2098359]
[1739868791554,0.42546532,95322.0,95319.0,0.2098303]
[1739868792062,0.42546532,95322.0,95319.0,0.35187918]
[1739868792859,0.42546532,95322.0,95319.0,0.14204888]
[1739868794161,0.42546532,95322.0,95319.0,0.14304888]
[1739868794356,0.42546532,95322.0,95319.0,0.35288078]
[1739868796052,0.00015738,95323.0,95319.0,0.35288078]
[1739868796053,0.00015738,95323.0,95321.0,0.2098278]
[1739868796256,0.00015738,95323.0,95322.0,0.2098256]
[1739868796257,0.01956543,95323.0,95322.0,0.2098256]
[1739868796559,0.01956543,95323.0,95322.0,0.7304256]
[1739868796762,0.01956543,95323.0,95322.0,0.87247448]
[1739868797063,0.01956543,95323.0,95322.0,0.66264888]
[1739868797461,0.00015738,95323.0,95322.0,0.5206]
[1739868797765,0.3608,95355.0,95339.0,0.2097882]
[1739868797766,0.08766124,95340.0,95339.0,0.2097882]
[1739868797963,0.01945907,95340.0,95339.0,0.7303882]
[1739868798462,0.06820217,95350.0,95339.0,0.5206]
[1739868798865,0.08755919,95350.0,95339.0,0.5216]
[1739868799069,0.08755919,95350.0,95340.0,0.2097841]
[1739868799270,0.08755919,95350.0,95341.0,0.2097837]
[1739868799860,0.08755919,95350.0,95342.0,0.2097814]
[1739868800163,0.08755919,95350.0,95339.0,0.52216]
[1739868800360,0.08755919,95350.0,95339.0,0.52708716]
[1739868800966,0.08755919,95350.0,95339.0,0.5216]
[1739868801168,0.08755919,95350.0,95339.0,0.44938438]
[1739868801470,0.08755919,95350.0,95339.0,0.44838438]
[1739868801668,0.08755919,95350.0,95342.0,0.2097815]
[1739868801864,0.01935702,95350.0,95343.0,0.3608]
[1739868802175,0.40655738,95354.0,95353.0,0.2097574]
[1739868802371,0.40655738,95354.0,95349.0,0.2097657]
[1739868802574,0.24434505,95354.0,95349.0,0.2097657]
[1739868802876,0.24434505,95354.0,95350.0,0.15764418]
[1739868803062,0.00015738,95354.0,95348.0,0.36628716]
[1739868803263,0.00015738,95354.0,95353.0,0.2097574]
[1739868803459,0.00015738,95354.0,95353.0,0.21524456]
[1739868803974,0.00015738,95354.0,95353.0,0.2097574]
[1739868805477,0.00015738,95354.0,95353.0,0.38889043]
[1739868805667,0.00522973,95362.0,95357.0,0.2097479]
[1739868805980,0.00522973,95362.0,95361.0,0.3608]
[1739868806568,0.4033,95374.0,95361.0,0.3608]
[1739868806763,0.42287535,95374.0,95361.0,0.3608]
[1739868807081,0.11330703,95373.0,95361.0,0.3608]
[1739868807377,0.11330703,95373.0,95361.0,0.26335225]
[1739868807577,0.4248,95372.0,95361.0,0.26435225]
[1739868808579,0.11157488,95371.0,95361.0,0.002]
[1739868808972,0.2652,95370.0,95361.0,0.001]
[1739868809281,0.2652,95370.0,95361.0,0.002]
[1739868809871,0.2652,95370.0,95362.0,0.17913303]
[1739868810571,0.11683268,95369.0,95362.0,0.17913303]
[1739868811672,0.11683268,95369.0,95362.0,0.18013303]
[1739868812284,0.11683268,95369.0,95362.0,0.18113303]
[1739868812478,0.11683268,95369.0,95362.0,0.18013303]
[1739868812781,0.11683268,95369.0,95362.0,0.18113303]
[1739868813284,0.11683268,95369.0,95362.0,0.18013303]
[1739868813580,0.3608,95367.0,95362.0,0.18013303]
[1739868813880,0.3608,95367.0,95362.0,0.17913303]
[1739868814387,0.2164,95366.0,95358.0,0.00015729]
[1739868814582,0.3608,95359.0,95358.0,0.00015729]
[1739868816179,0.5705442,95359.0,95358.0,0.00015729]
[1739868816882,0.5705442,95359.0,95358.0,0.00115729]
[1739868818483,0.5705442,95359.0,95358.0,0.00215729]
[1739868819081,0.5705442,95359.0,95358.0,0.00115729]
[1739868819373,0.5705442,95359.0,95358.0,0.00215729]
[1739868820274,0.3608,95359.0,95347.0,0.1707]
[1739868820485,0.3608,95348.0,95347.0,0.1707]
[1739868821877,0.3608,95348.0,95347.0,0.1717]
[1739868822369,0.3608,95348.0,95347.0,0.09948223]
[1739868823179,0.3618,95348.0,95347.0,0.10048223]
[1739868823384,0.3618,95348.0,95347.0,0.02828223]
[1739868823776,0.3608,95348.0,95347.0,0.02728223]
[1739868823971,0.3628,95348.0,95347.0,0.02728223]
[1739868824183,0.48339299,95348.0,95347.0,0.02828223]
[1739868824578,0.50290964,95348.0,95347.0,0.02828223]
[1739868826278,0.71267804,95348.0,95329.0,0.3913]
[1739868826484,0.3608,95338.0,95329.0,0.3913]
[1739868826678,0.4117,95337.0,95329.0,0.39678716]
[1739868827086,0.4117,95337.0,95329.0,0.3913]
[1739868827287,0.3608,95338.0,95329.0,0.3913]
[1739868827985,0.001,95337.0,95329.0,0.3923]
[1739868828484,0.11149007,95337.0,95329.0,0.3923]
[1739868828784,0.11149007,95337.0,95329.0,0.3913]
[1739868829286,0.11249007,95337.0,95329.0,0.3913]
[1739868829479,0.11249007,95337.0,95331.0,0.2098048]
[1739868829680,0.001,95337.0,95331.0,0.2098048]
[1739868830284,0.001,95337.0,95336.0,0.3608]
[1739868830684,0.4117,95347.0,95336.0,0.3608]
[1739868830886,0.003,95337.0,95330.0,0.4093]
[1739868831080,0.003,95337.0,95330.0,0.5838]
[1739868831291,0.003,95337.0,95336.0,0.001]
[1739868831883,0.4147,95347.0,95330.0,0.51638]
[1739868832088,0.4147,95347.0,95330.0,0.41478716]
[1739868832382,0.4117,95347.0,95330.0,0.41478716]
[1739868832585,0.003,95337.0,95330.0,0.41478716]
[1739868832781,0.003,95337.0,95330.0,0.34257012]
[1739868834087,0.1038136,95340.0,95330.0,0.34257012]
[1739868834680,0.002,95337.0,95330.0,0.34257012]
[1739868835286,0.1058136,95340.0,95330.0,0.34257012]
[1739868835687,0.1038136,95340.0,95330.0,0.34257012]
[1739868835884,0.002,95337.0,95330.0,0.34257012]
[1739868836682,0.11164087,95336.0,95330.0,0.34257012]
[1739868837283,0.002,95337.0,95330.0,0.25721556]
[1739868837787,0.3474136,95340.0,95330.0,0.25721556]
[1739868837983,0.11093682,95337.0,95330.0,0.25721556]
[1739868838190,0.3474136,95340.0,95331.0,0.0722]
[1739868838498,0.11093682,95336.0,95331.0,0.0722]
[1739868838694,0.002,95337.0,95331.0,0.07768716]
[1739868839092,0.11866081,95336.0,95331.0,0.0722]
[1739868839597,0.002,95336.0,95331.0,0.0722]
[1739868839994,0.002,95336.0,95331.0,0.0732]
[1739868840591,0.002,95336.0,95331.0,0.0722]
[1739868842192,0.3608,95341.0,95331.0,0.0722]
[1739868842389,0.002,95336.0,95331.0,0.0722]
[1739868842897,0.3608,95341.0,95331.0,0.0722]
[1739868843093,0.002,95336.0,95331.0,0.0722]
[1739868843293,0.002,95336.0,95330.0,0.80974876]
[1739868843502,0.002,95336.0,95330.0,0.80918876]
[1739868843794,0.002,95336.0,95330.0,0.59938146]
[1739868844096,0.002,95336.0,95332.0,0.2098032]
[1739868844794,0.002,95336.0,95335.0,0.3608]
[1739868848198,0.4117,95347.0,95335.0,0.3608]
[1739868848401,0.002,95336.0,95335.0,0.3608]
[1739868849297,0.002,95336.0,95335.0,0.32472001]
[1739868849599,0.002,95336.0,95335.0,0.53451701]
[1739868850097,0.11254779,95346.0,95335.0,0.32472001]
[1739868850303,0.11254779,95346.0,95343.0,0.3608]
[1739868850489,0.11254779,95346.0,95344.0,1.0883]
[1739868851303,0.11254779,95346.0,95344.0,1.01609294]
[1739868852090,0.11254779,95346.0,95344.0,1.01709294]
[1739868852394,0.11454779,95346.0,95344.0,1.01709294]
[1739868852590,0.11454779,95346.0,95344.0,1.0225801]
[1739868852799,0.11454779,95346.0,95344.0,0.67428716]
[1739868853105,0.11454779,95346.0,95344.0,0.67528716]
[1739868854815,0.11454779,95346.0,95344.0,0.67428716]
[1739868854999,0.11454779,95346.0,95344.0,0.42378716]
[1739868855505,0.11454779,95346.0,95344.0,0.34532845]
[1739868855710,0.11254779,95346.0,95344.0,0.34432845]
[1739868855906,0.11454779,95346.0,95344.0,0.34532845]
[1739868857497,0.11254779,95346.0,95344.0,0.34432845]
[1739868857696,0.11454779,95346.0,95344.0,0.34532845]
[1739868858703,0.11454779,95346.0,95344.0,0.34432845]
[1739868858905,0.11254779,95346.0,95344.0,0.34432845]
[1739868859107,0.11454779,95346.0,95344.0,0.34532845]
[1739868859408,0.11454779,95346.0,95344.0,0.27312129]
[1739868861512,0.11454779,95346.0,95344.0,0.1877843]
[1739868862403,0.11454779,95346.0,95344.0,0.1867843]
[1739868862603,0.11454779,95346.0,95344.0,0.1877843]
[1739868863209,0.11454779,95346.0,95344.0,0.11951522]
[1739868863606,0.11454779,95346.0,95344.0,0.02105026]
[1739868864710,0.002,95346.0,95344.0,0.0155631]
[1739868864907,0.002,95346.0,95345.0,0.209775]
[1739868866614,0.002,95346.0,95345.0,0.210775]
[1739868866816,0.002,95346.0,95345.0,0.601575]
[1739868867212,0.01785122,95355.0,95350.0,0.2097637]
[1739868867403,0.8433,95356.0,95350.0,0.00548716]
[1739868867404,0.84450001,95356.0,95350.0,0.00548716]
[1739868867608,0.8433,95356.0,95354.0,0.2097549]
[1739868868317,0.002,95355.0,95354.0,0.2097549]
[1739868868911,0.84646,95356.0,95354.0,0.001]
[1739868869119,0.8453,95356.0,95354.0,0.001]
[1739868869612,0.8453,95356.0,95354.0,0.002]
[1739868869812,0.8453,95356.0,95348.0,0.2097667]
[1739868870513,0.002,95355.0,95354.0,0.001]
[1739868870920,0.002,95355.0,95354.0,0.00648716]
[1739868871119,0.84454001,95356.0,95354.0,0.00548716]
[1739868871412,0.84454001,95356.0,95348.0,0.002]
[1739868871413,0.11521117,95355.0,95348.0,0.002]
[1739868871609,0.11521117,95355.0,95348.0,0.00748716]
[1739868871804,0.11521117,95355.0,95348.0,0.00648716]
[1739868872010,0.11721117,95355.0,95354.0,0.002]
[1739868872620,0.11721117,95355.0,95354.0,0.001]
[1739868873511,0.11821117,95355.0,95348.0,0.002]
[1739868874112,0.11821117,95355.0,95354.0,0.001]
[1739868874322,0.12121117,95355.0,95354.0,0.002]
[1739868874523,0.12121117,95355.0,95343.0,0.33214873]
[1739868874823,0.12121117,95355.0,95348.0,0.001]
[1739868875026,0.12121117,95355.0,95348.0,0.002]
[1739868875514,0.3608,95353.0,95348.0,0.002]
[1739868876422,0.11267291,95352.0,95348.0,0.001]
[1739868876822,0.2472,95351.0,95348.0,0.001]
[1739868877218,0.2472,95351.0,95348.0,0.002]
[1739868877419,0.11785107,95350.0,95348.0,0.002]
[1739868877616,0.1686446,95351.0,95348.0,0.002]
[1739868877923,0.12018386,95349.0,95348.0,0.002]
[1739868878313,0.12018386,95350.0,95348.0,0.001]
[1739868878624,0.12018386,95350.0,95348.0,0.002]
[1739868879219,0.11107845,95349.0,95348.0,0.002]
[1739868879420,0.11107845,95350.0,95348.0,0.002]
[1739868879810,0.1716446,95351.0,95348.0,0.002]
[1739868880015,0.11375081,95350.0,95348.0,0.00177328]
[1739868880221,0.11375081,95350.0,95348.0,0.001]
[1739868880417,0.003,95349.0,95348.0,0.001]
[1739868880622,0.003,95349.0,95335.0,0.91484]
[1739868880623,0.006,95349.0,95335.0,0.76492321]
[1739868880920,0.006,95349.0,95335.0,0.00548716]
[1739868880921,0.3608,95344.0,95335.0,0.00548716]
[1739868881115,0.826,95343.0,95335.0,0.00548716]
[1739868881310,0.93669832,95343.0,95335.0,0.00548716]
[1739868881823,0.93669832,95343.0,95335.0,0.00648716]
[1739868883423,0.94069832,95343.0,95335.0,0.00748716]
[1739868883629,0.94469832,95343.0,95335.0,0.00748716]
[1739868883830,0.77809409,95343.0,95335.0,0.00748716]
[1739868884331,0.77909409,95343.0,95335.0,0.00748716]
[1739868886030,0.77809409,95343.0,95335.0,0.00748716]
[1739868886727,0.52779832,95343.0,95338.0,0.3608]
[1739868886923,0.009,95343.0,95339.0,0.6541]
[1739868887827,0.009,95343.0,95339.0,0.65958716]
[1739868888826,0.009,95343.0,95339.0,0.66058716]
[1739868889631,0.009,95343.0,95339.0,0.66158716]
[1739868890220,0.008,95343.0,95339.0,0.66158716]
[1739868891428,0.008,95343.0,95339.0,0.39718716]
[1739868891829,0.008,95343.0,95339.0,0.00748716]
[1739868892029,0.42806,95349.0,95339.0,0.00748716]
[1739868892235,0.4269,95349.0,95339.0,0.00748716]
[1739868892431,0.11599692,95346.0,95339.0,0.00748716]
[1739868892632,0.11599692,95348.0,95339.0,0.00748716]
[1739868892935,0.004,95343.0,95339.0,0.00648716]
[1739868893328,0.004,95343.0,95339.0,0.00548716]
[1739868893635,0.004,95343.0,95332.0,0.8314]
[1739868893636,0.008,95343.0,95332.0,0.76567201]
[1739868893836,0.06814889,95342.0,95332.0,0.76507201]
[1739868894031,0.18845138,95342.0,95332.0,0.76507201]
[1739868894236,0.18845138,95342.0,95332.0,0.33317201]
[1739868894730,0.18845138,95342.0,95339.0,0.001]
[1739868894931,0.12030249,95342.0,95339.0,0.001]
[1739868896135,0.12030249,95342.0,95332.0,0.33317201]
[1739868896340,0.12030249,95342.0,95332.0,0.33417201]
[1739868897033,0.12030249,95342.0,95332.0,0.33317201]
[1739868897227,0.12030249,95342.0,95339.0,0.001]
[1739868897431,0.12030249,95342.0,95339.0,0.00090001]
[1739868897842,0.12130249,95342.0,95339.0,0.001]
[1739868898342,0.13947813,95342.0,95339.0,0.001]
[1739868899744,0.14047813,95342.0,95339.0,0.002]
[1739868900239,0.3608,95341.0,95339.0,0.002]
[1739868900439,0.46569107,95341.0,95329.0,0.00015729]
[1739868900629,0.3608,95330.0,95329.0,0.00015729]
[1739868901738,0.3608,95330.0,95319.0,0.29030093]
[1739868901934,0.06814889,95329.0,95319.0,0.29030093]
[1739868903342,0.07014889,95329.0,95313.0,0.2531]
[1739868903530,0.06814889,95323.0,95313.0,0.2531]
[1739868903739,0.3608,95318.0,95313.0,0.2531]
[1739868904045,0.4229,95317.0,95313.0,0.2531]
[1739868907351,0.44097187,95317.0,95313.0,0.2531]
[1739868909443,0.00515179,95314.0,95313.0,0.2531]
[1739868909651,0.00515179,95314.0,95313.0,0.18086442]
[1739868915256,0.06814889,95323.0,95313.0,0.18086442]
[1739868915257,0.42894889,95340.0,95326.0,0.15155006]
[1739868915558,0.00124001,95340.0,95333.0,0.3608]
[1739868915852,0.01749472,95342.0,95333.0,0.3608]
[1739868916156,0.01820312,95344.0,95333.0,0.37866138]
[1739868916656,0.4013,95349.0,95333.0,0.37866138]
[1739868917059,0.002,95334.0,95333.0,0.37866138]
[1739868917258,0.002,95334.0,95333.0,0.58846278]
[1739868917744,0.002,95334.0,95333.0,0.5706014]
[1739868918145,0.004,95334.0,95333.0,0.5716014]
[1739868918757,0.004,95334.0,95333.0,0.5706014]
[1739868921060,0.002,95334.0,95333.0,0.5706014]
[1739868921258,0.004,95334.0,95333.0,0.5706014]
[1739868922051,0.004,95334.0,95333.0,0.3608]
[1739868922257,0.004,95334.0,95333.0,0.46736]
[1739868923450,0.002,95334.0,95333.0,0.46736]
[1739868923763,0.003,95334.0,95333.0,0.46736]
[1739868925164,0.004,95334.0,95333.0,0.6771614]
[1739868925364,0.004,95334.0,95333.0,0.5706014]
[1739868925662,0.004,95334.0,95333.0,0.3608]
[1739868925862,0.004,95334.0,95333.0,0.46736]
[1739868926861,0.004,95334.0,95333.0,0.39514694]
[1739868927165,0.002,95334.0,95333.0,0.49838834]
[1739868927359,0.004,95334.0,95333.0,0.49838834]
[1739868928758,0.002,95334.0,95333.0,0.49838834]
[1739868928957,0.004,95334.0,95333.0,0.49838834]
[1739868929957,0.002,95334.0,95333.0,0.49838834]
[1739868930158,0.004,95334.0,95333.0,0.49838834]
[1739868931264,0.002,95334.0,95333.0,0.49838834]
[1739868931464,0.004,95334.0,95333.0,0.49838834]
[1739868933168,0.004,95334.0,95333.0,0.2098014]
[1739868933368,0.004,95334.0,95331.0,0.91552]
[1739868933559,0.004,95334.0,95332.0,0.10652]
[1739868933867,0.02053013,95334.0,95333.0,0.10652]
[1739868934069,0.004,95334.0,95331.0,0.00064]
[1739868934365,0.004,95334.0,95332.0,0.10652]
[1739868934366,0.002,95334.0,95332.0,0.10652]
[1739868934557,0.004,95334.0,95332.0,0.10652]
[1739868937060,0.01999405,95334.0,95332.0,0.10752]
[1739868937268,0.004,95334.0,95332.0,0.001]
[1739868937770,0.004,95334.0,95331.0,0.2098047]
[1739868938468,0.004,95334.0,95324.0,0.36095737]
[1739868938773,0.004,95334.0,95333.0,0.5706014]
[1739868939168,0.002,95334.0,95333.0,0.5706014]
[1739868939375,0.004,95334.0,95333.0,0.5706014]
[1739868940076,0.004,95334.0,95333.0,0.58663955]
[1739868940270,0.002,95334.0,95333.0,0.58663955]
[1739868940477,0.004,95334.0,95333.0,0.58663955]
[1739868940774,0.002,95334.0,95333.0,0.58663955]
[1739868941281,0.004,95334.0,95333.0,0.69315955]
[1739868942079,0.004,95334.0,95333.0,0.3163214]
[1739868942291,0.004,95334.0,95333.0,0.2098014]
[1739868942668,0.004,95334.0,95333.0,0.22630997]
[1739868942874,0.004,95334.0,95333.0,0.16322984]
[1739868943675,0.004,95334.0,95333.0,0.78482984]
[1739868944978,0.002,95334.0,95333.0,0.78482984]
[1739868945176,0.004,95334.0,95333.0,0.78482984]
[1739868946871,0.002,95334.0,95333.0,0.78482984]
[1739868947071,0.004,95334.0,95333.0,0.78482984]
[1739868947272,0.002,95334.0,95333.0,0.78482984]
[1739868947477,0.004,95334.0,95333.0,0.78482984]
[1739868948179,0.002,95334.0,95333.0,0.63810857]
[1739868948379,0.004,95334.0,95333.0,0.3608]
[1739868948577,0.004,95334.0,95333.0,0.46732]
[1739868949486,0.004,95334.0,95333.0,0.6771214]
[1739868949676,0.004,95334.0,95333.0,0.5706014]
[1739868949875,0.004,95334.0,95333.0,0.42932121]
[1739868950387,0.004,95334.0,95333.0,0.22607606]
[1739868950585,0.002,95334.0,95333.0,0.22607606]
[1739868950780,0.004,95334.0,95333.0,0.22607606]
[1739868951379,0.002,95334.0,95333.0,0.22607606]
[1739868951687,0.004,95334.0,95333.0,0.22607606]
[1739868953181,0.16534435,95338.0,95333.0,0.2098014]
[1739868953482,0.16534435,95338.0,95330.0,0.91552]
[1739868953685,0.16534435,95338.0,95334.0,0.2097973]
[1739868954279,0.16734435,95338.0,95334.0,0.2097973]
[1739868954480,0.16734435,95338.0,95335.0,0.2097965]
[1739868954782,0.16534435,95338.0,95337.0,0.2097926]
[1739868954994,0.16734435,95338.0,95337.0,0.2097926]
[1739868955184,0.002,95338.0,95337.0,0.2097926]
[1739868957091,0.002,95338.0,95337.0,0.18365288]
[1739868957779,1.06376,95342.0,95338.0,0.2097902]
[1739868957986,1.0626,95342.0,95338.0,0.13757997]
[1739868958290,1.0626,95342.0,95338.0,0.2097884]
[1739868958588,1.0626,95342.0,95339.0,0.2097881]
[1739868959889,0.809,95342.0,95339.0,0.2097881]
[1739868960483,0.809,95342.0,95339.0,0.2097878]
[1739868960681,0.809,95342.0,95339.0,0.2107878]
[1739868962494,0.809,95342.0,95340.0,0.2097854]
[1739868963889,0.809,95342.0,95340.0,0.2107854]
[1739868964088,0.809,95342.0,95340.0,0.2117854]
[1739868964399,0.809,95342.0,95341.0,0.2097838]
[1739868964986,0.809,95342.0,95341.0,0.18880543]
[1739868965699,0.809,95342.0,95341.0,0.18980543]
[1739868966186,0.809,95342.0,95341.0,0.001]
[1739868966597,0.809,95342.0,95341.0,0.002]
[1739868967600,0.809,95342.0,95341.0,0.001]
[1739868968003,0.809,95342.0,95341.0,0.002]
[1739868969594,0.809,95342.0,95341.0,0.001]
[1739868969796,0.809,95342.0,95341.0,0.002]
[1739868971100,0.809,95342.0,95340.0,0.08543379]
[1739868971299,0.809,95342.0,95334.0,0.2097988]
[1739868972098,0.809,95342.0,95331.0,0.3608]
[1739868972302,0.809,95342.0,95332.0,0.10648]
[1739868972504,0.809,95342.0,95333.0,0.91492]
[1739868972707,0.81,95342.0,95340.0,0.001]
[1739868973506,0.81,95342.0,95333.0,0.91548]
[1739868973706,0.81,95342.0,95333.0,0.91492]
[1739868974207,0.3608,95338.0,95334.0,0.10648]
[1739868974412,0.249,95337.0,95333.0,0.91548]
[1739868974709,0.2097992,95334.0,95324.0,0.0344137]
[1739868974896,0.3608,95325.0,95313.0,0.41667361]
[1739868975101,0.249,95324.0,95313.0,0.41667361]
[1739868975305,0.36804675,95324.0,95313.0,0.41667361]
[1739868975910,0.36804675,95324.0,95313.0,0.43299763]
[1739868976116,0.36804675,95324.0,95313.0,0.43399763]
[1739868976303,0.38448019,95324.0,95313.0,0.43399763]
[1739868976612,0.38448019,95324.0,95313.0,0.41967361]
[1739868976806,0.3608,95315.0,95313.0,0.41967361]
[1739868977607,0.3608,95315.0,95313.0,0.00457361]
[1739868977916,0.4161,95314.0,95313.0,0.02109035]
[1739868978214,0.4161,95314.0,95313.0,0.00457361]
[1739868978514,0.3608,95315.0,95313.0,0.00457361]
[1739868978704,0.0053581,95314.0,95313.0,0.00457361]
[1739868978909,0.0053581,95314.0,95313.0,0.00357361]
[1739868979110,0.0053581,95314.0,95313.0,0.00457361]
[1739868979818,0.3608,95315.0,95313.0,0.00457361]
[1739868980108,0.3608,95315.0,95312.0,0.2098468]
[1739868980313,0.3608,95315.0,95312.0,0.12905977]
[1739868980508,0.4161,95323.0,95314.0,0.3608]
[1739868980707,0.4161,95323.0,95315.0,0.6867]
[1739868980912,0.4161,95323.0,95316.0,0.209838]
[1739868981112,0.4161,95323.0,95316.0,0.4119]
[1739868983415,0.4161,95323.0,95322.0,0.2098256]
[1739868983616,0.4161,95323.0,95317.0,0.2098365]
[1739868983816,0.4161,95323.0,95316.0,0.4119]
[1739868984317,0.00015737,95324.0,95320.0,0.2098296]
[1739868984513,0.001,95323.0,95320.0,0.2098296]
[1739868985019,0.00015737,95324.0,95320.0,0.2098296]
[1739868985616,0.002,95323.0,95320.0,0.2098296]
[1739868986203,0.00015737,95324.0,95321.0,0.2098277]
[1739868986411,0.00115737,95324.0,95321.0,0.2098277]
[1739868986608,0.00115737,95324.0,95316.0,0.4119]
[1739868987108,0.002,95323.0,95316.0,0.4119]
[1739868987711,0.001,95323.0,95322.0,0.2098256]
[1739868988414,1e-08,95324.0,95323.0,0.2098234]
[1739868990027,0.00200001,95324.0,95323.0,0.2098234]
[1739868991020,0.00200001,95324.0,95322.0,0.3608]
[1739868991021,0.00300001,95324.0,95318.0,0.2098331]
[1739868991312,0.00300001,95324.0,95319.0,0.2098319]
[1739868991513,0.00300001,95324.0,95317.0,0.1743]
[1739868991514,0.00300001,95324.0,95321.0,0.2098273]